Cogmind - Beta 17 @@@ ROGUE MODE // 2026.07.07 @ 07:31:10 Player: shapeshifter Result: Destroyed by Triborg with Siege Cannon Performance ------------- Evolutions (0) 0 Regions Visited (5) 1000 Robots Destroyed (90) 450 Value Destroyed (2639) 2639 Prototype IDs (48) 960 Alien Tech Used (0) 0 Bonus (18354) 18354 TOTAL SCORE: 23403 Bonus ------- High Alert Combat Kills 43 Follower Combat Kills 1373 Prayed to X0-1V1 5000 Major X0-1V1 Interference 9750 Delivered SUBCON Basin 2000 Registered with UFD 300 Friendly Fire -112 Cogmind --------- Core Integrity 0/375 Matter 300/300 Energy 98/100 System Corruption 0% Temperature Cool (0) Movement Core (50) Location -7/Scraptown Parts ------- > --- POWER (2) -------- (None) > --- PROPULSION (1) --- (None) > --- UTILITY (2) ------ A0-MCA's Component Scanner > --- WEAPON (2) ------- (None) > --- INVENTORY (5) ---- Protomatter-110 Airjet Deep Structural Scanner Tech Extrapolator Ragnarok Missile Launcher Peak State ------------ > --- POWER ------------ Reinforced Ion Engine Reinforced Ion Engine > --- PROPULSION ------- Medium Treads > --- UTILITY ---------- Huge Storage Unit X0-1V1's Piety Tracker > --- WEAPON ----------- Powered Cannon > --- INVENTORY -------- Protomatter Hacking Suite Makeshift Hacking Suite Trap Extractor Improved Medium Laser Missile Launcher Datajack Multitool SUBCON Basin [Rating: 55] Favorites ----------- Power Reinforced Ion Engine Engine Reinforced Ion Engine Power Core Light Nuclear Core Propulsion Light Treads Treads Light Treads Wheel Armored Wheel Hover Unit Airjet Utility Large Storage Unit Device X0-1V1's Piety Tracker Storage Large Storage Unit Processor Salvage Targeting Computer Protection Medium Armor Plating Weapon Subdweller Beam Cannon Energy Gun Improved EM Shotgun Energy Cannon Subdweller Beam Cannon Ballistic Gun Assault Rifle Ballistic Cannon Heavy Assault Cannon Launcher Missile Launcher Special Weapon CPS Tube Slashing Weapon Greatsword Special Melee Weapon Datajack Build | -11 -10 -10 -10 -7 -7 ------- Run | Yrd Mat Min Sub Rec Scr Slots Evolved . | . . . . . . Power . | . . . . . . Propulsion . | . . . . . . Utility . | . . . . . . Weapon . | . . . . . . Parts Attached 73 | 7 9 8 32 3 14 Power 7 | 1 1 . 3 . 2 Engine 5 | 1 1 . 3 . . Core 2 | . . . . . 2 Reactor . | . . . . . . Propulsion 17 | 2 1 4 5 2 3 Treads 10 | 2 . 4 2 2 . Leg . | . . . . . . Wheel 6 | . 1 . 3 . 2 Hover 1 | . . . . . 1 Flight . | . . . . . . Utility 20 | 2 4 2 6 . 6 Device 7 | 1 1 1 2 . 2 Storage 4 | 1 1 . 1 . 1 Processor 1 | . . . . . 1 Hackware . | . . . . . . Protection 8 | . 2 1 3 . 2 Artifact . | . . . . . . Weapon 29 | 2 3 2 18 1 3 Energy Gun . | . . . . . . Energy Cannon 9 | . . . 8 1 . Ballistic Gun 11 | 2 3 2 4 . . Ballistic Cannon 2 | . . . 2 . . Launcher 2 | . . . 2 . . Special Weapon 2 | . . . . . 2 Impact Weapon . | . . . . . . Slashing Weapon 2 | . . . 1 . 1 Piercing Weapon . | . . . . . . Special Melee Weapon 1 | . . . 1 . . Unidentified Prototypes 2 | . 1 . 1 . . Parts Lost 31 | . 4 1 18 3 5 Power 5 | . 1 . 3 1 . Propulsion 9 | . 1 . 4 1 3 Utility 5 | . 1 . 4 . . Weapon 12 | . 1 1 7 1 2 Highest Loss Streak 4 | . 2 1 4 2 2 To Critical Strikes . | . . . . . . Average Backups 10 | 2 9 13 10 8 14 Power . | . . . . . . Propulsion . | . . 1 . . 1 Utility 3 | . 3 5 2 3 6 Weapon 4 | . 4 5 5 2 2 Tool/Special . | . . . . . . Unused Backups 54 | . 2 12 22 3 15 Power . | . . . . . . Propulsion 6 | . . . 2 1 3 Utility 22 | . 1 6 6 2 7 Weapon 23 | . 1 6 13 . 3 Tool/Special 3 | . . . 1 . 2 Average Slot Usage (%) 77 | . 94 99 76 66 73 Engine 13 | . 13 14 16 18 1 Core 3 | . . . . . 22 Treads 5 | . 23 26 2 7 . Wheel 4 | . . 1 4 . 10 Device 4 | . 9 1 2 12 9 Storage 13 | . 14 14 14 12 11 Processor 4 | . . . 7 . . Protection 5 | . 4 14 6 . 1 Energy Cannon 11 | . . . 13 7 10 Ballistic Gun 6 | . 28 26 4 . . Ballistic Cannon 2 | . . . 2 5 . Peak Build Rating 55 | 7 20 15 47 55 43 Average Rating 23 | 5 11 12 20 45 37 On Entrance 19 | . 7 9 15 47 36 Avg Prop Armor Cover (%) 9 | . 9 9 . . . Naked Turns . | . . . . . . Heaviest Build 114 | 15 34 39 114 113 103 Greatest Support 40 | 40 40 40 24 28 28 Greatest Overweight (x) 37 | . 3 3 16 37 9 Average Overweight (x) 5 | . . . 6 8 6 Largest Inventory Capacity 25 | 8 15 15 25 25 25 Average Capacity 18 | 7 13 15 17 25 23 Most Carried 25 | 5 13 15 25 25 23 Average Carried 15 | 2 9 13 15 20 16 Final Capacity 25 | 8 15 15 25 25 5 Final Carried 25 | 3 8 13 25 10 5 Class Distribution -------------------- 70% | Mutant 14% | Derelict-Mutant 8% | Gunner 5% | Scavenger-Mutant Dominant Class ---------------- Mutant | -10/Materials Mutant | -10/Mines Mutant | -10/Subcaves Mutant | -7/Recycling Derelict-Mutant | -7/Scraptown Resources | -11 -10 -10 -10 -7 -7 ----------- Run | Yrd Mat Min Sub Rec Scr Matter Collected 3438 | 306 630 708 1607 27 160 Remotely . | . . . . . . Salvage Created 2998 | 128 1014 255 1292 92 217 Parts 165 | 6 60 19 70 4 6 Haulers Intercepted 1 | . 1 . . . . Recyclers Shooed . | . . . . . . Parts Field Recycled . | . . . . . . Retrieved Matter . | . . . . . . Parts Self-Destructed 32 | . . . 32 . . Prevented . | . . . . . . Parts Restored . | . . . . . . Kills | -11 -10 -10 -10 -7 -7 ------- Run | Yrd Mat Min Sub Rec Scr Combat Hostiles Destroyed 81 | . 23 7 43 4 4 Melee 3 | . . . . . 3 Guns 39 | . 23 7 9 . . Cannons 26 | . . . 23 3 . AOE 9 | . . . 9 . . Classes Destroyed 15 | 2 5 2 3 . 3 Builder 1 | . 1 . . . . Tunneler 2 | 2 . . . . . Hauler 1 | . 1 . . . . Recycler 1 | 1 . . . . . Turret 2 | . . . 2 . . Watcher 2 | . 2 . . . . Swarmer 23 | . 3 3 13 4 . Grunt 31 | . 20 . 11 . . Sentry 3 | . . 3 . . . Heavy 1 | . . 1 . . . Subdweller 18 | . . . 18 . . Bolteater 1 | . . . . . 1 Federalist 1 | . . . . . 1 Scrapper 2 | . . . . . 2 Mutant 1 | . . . 1 . . Best Kill Streak 7 | 2 7 4 5 4 2 Combat Bots Only 6 | . 6 4 5 4 2 Max Kills in Single Turn 3 | 1 2 1 3 1 1 Gunslinging 1 | . 1 . . . . Exploded 3 | . . . 3 . . Melee 1 | . . . . . 1 Uniques/NPCs Destroyed . | . . . . . . Combat | -11 -10 -10 -10 -7 -7 -------- Run | Yrd Mat Min Sub Rec Scr Hostile Shots Fired 675 | . 102 61 376 59 77 Missed 222 | . 33 21 115 23 30 Hits 453 | . 69 40 261 36 47 Melee 17 | . . . 2 2 13 Projectile 436 | . 69 40 259 34 34 AOE 2 | . . . 2 . . Critical Strikes 8 | . . 1 3 . 4 Part Disruptions 1 | . . . 1 . . Damage Taken 6706 | . 813 507 3865 612 909 Core 1573 | . 139 89 962 61 322 Absorbed by Shields 28 | . 15 . 13 . . Ignored by Resistances 87 | . . 24 63 . . Core Remaining (%) 100 | 100 . . . . . Volleys Fired 364 | 6 95 31 215 15 2 Largest 3 | 2 2 2 3 1 1 Hottest 160 | 40 50 50 160 50 5 Shots Fired 621 | 12 188 58 345 16 2 Gun 350 | 12 188 58 92 . . Cannon 262 | . . . 246 16 . Launcher 7 | . . . 7 . . Special 2 | . . . . . 2 Kinetic 399 | 12 188 58 135 6 . Thermal 213 | . . . 203 10 . Explosive 7 | . . . 7 . . Electromagnetic . | . . . . . . Robot Hit Streak 23 | 3 11 7 23 3 2 Robot Miss Streak 6 | 2 6 3 4 4 . Penetration Max . | . . . . . . Secondary Targets 7 | . 4 2 1 . . Max Gunslinging Chain 1 | . 1 1 1 . . Shots Hit Robots 379 | 7 124 37 198 6 7 Core Hits 132 | 3 52 12 58 4 3 Critical Kills 4 | 1 . . 2 1 . Critical Parts Destroyed . | . . . . . . Critical Strikes 6 | 1 . . 4 1 . Meltdown 3 | . . . 2 1 . Destroy 1 | 1 . . . . . Blast 2 | . . . 2 . . Melee Attacks 13 | . . . 4 . 9 Impact . | . . . . . . Slashing 10 | . . . 1 . 9 Piercing . | . . . . . . Sneak Attacks 3 | . . . 3 . . Combat Hostiles . | . . . . . . Follow-up Attacks . | . . . . . . Damage Inflicted 8253 | 102 1736 682 5065 365 303 Guns 3294 | 102 1654 672 866 . . Cannons 3850 | . 82 . 3403 365 . Explosions 766 | . . . 766 . . Melee 333 | . . . 30 . 303 Ramming 10 | . . 10 . . . Kinetic 4119 | 102 1736 672 1501 108 . Thermal 2927 | . . . 2670 257 . Explosive 766 | . . . 766 . . Electromagnetic . | . . . . . . Impact . | . . . . . . Slashing 333 | . . . 30 . 303 Piercing . | . . . . . . Entropic 98 | . . . 98 . . Highest Corruption 19 | . . 19 18 . . Average Corruption 7 | . . 14 6 . . Corruption Purged . | . . . . . . Corruption Blocked . | . . . . . . Effects 109 | . . 6 103 . . Message Errors 34 | . . 3 31 . . Matter Fused 26 | . . . 26 . . Heat Flow Errors 9 | . . . 9 . . Energy Discharges 7 | . . . 7 . . Parts Rejected 2 | . . . 2 . . Data Loss (minor) 11 | . . . 11 . . Data Loss (major) 7 | . . . 7 . . Misfires 7 | . . 1 6 . . Alerts 2 | . . . 2 . . Weapon Failures 4 | . . 2 2 . . Overload Shots . | . . . . . . Overflow Damage 268 | . . . 174 62 32 Projectiles 148 | . . . 86 62 . Explosions 88 | . . . 88 . . Melee 32 | . . . . . 32 Knockbacks 7 | . 1 . 4 2 . Impact . | . . . . . . Kinetic 7 | . 1 . 4 2 . Secondary . | . . . . . . Self-Inflicted Damage 66 | . . . 66 . . Shots 3 | . . . 3 . . Rammed 3 | . . 3 . . . Targets Rammed 3 | . . 3 . . . Kicked . | . . . . . . Crushed . | . . . . . . Highest Temperature 229 | . 198 32 229 95 . Average Temperature 68 | . 87 12 70 48 . Received Heat Transfer 1709 | . 383 108 927 18 273 Siege Activations . | . . . . . . Martial Activations . | . . . . . . Shielding Activations . | . . . . . . Robots Disrupted . | . . . . . . Combat Hostiles . | . . . . . . Robots Corrupted . | . . . . . . Combat Hostiles . | . . . . . . Parts Fried . | . . . . . . Impact Corruptions . | . . . . . . Robots Melted 3 | . . . 2 1 . Combat Hostiles 3 | . . . 2 1 . Parts Melted 12 | . . . 9 3 . Heat Transferred 3970 | . . . 3970 . . Parts Sabotaged . | . . . . . . Parts Stolen 1 | . . . . . 1 Parts Stripped . | . . . . . . Power Chain Reactions . | . . . . . . Alert | -11 -10 -10 -10 -7 -7 ------- Run | Yrd Mat Min Sub Rec Scr Maximum Alert Level 2 | . 2 1 . . . Low Security (%) 68 | 100 55 54 . 100 . Level 1 23 | . 25 45 . . . Level 2 8 | . 18 . . . . Level 3 . | . . . . . . Level 4 . | . . . . . . Level 5 . | . . . . . . High Security . | . . . . . . Max Security . | . . . . . . Peak Influence 429 | 10 429 395 . 99 . Initial 162 | . . 162 . 98 . Average 147 | . 180 236 . 19 . Influence Increases 2165 | 15 781 645 625 99 . Destroy 0b10 Robot/C 1440 | . 460 300 600 80 . Destroy 0b10 Robot/NC 35 | 15 20 . . . . Destroy Leader 146 | . 116 10 20 . . Allied During Kill 48 | . 5 38 5 . . Successful Hack 11 | . 11 . . . . Select Force Hacks 60 | . 60 . . . . Disable Machine 15 | . . . . 15 . Destroy Structure 10 | . 5 1 . 4 . Miscellaneous 400 | . 104 296 . . . Influence Decreases 2165 | 15 364 719 762 305 . Entered New Map 542 | . . 255 179 108 . Time Decay 1243 | 15 324 334 413 157 . Lost Part 220 | . 40 10 150 20 . Lost Ally 160 | . . 120 20 20 . Squads Dispatched 9 | . 7 2 . . . Investigation 6 | . 5 1 . . . Extermination . | . . . . . . Reinforcement 2 | . 2 . . . . Assault 1 | . . 1 . . . Garrison . | . . . . . . Intercept . | . . . . . . Searches Triggered . | . . . . . . Construction Impeded . | . . . . . . Haulers Reinforced . | . . . . . . Active Scanning Responses . | . . . . . . Cargo Convoy Interrupts . | . . . . . . Stealth | -11 -10 -10 -10 -7 -7 --------- Run | Yrd Mat Min Sub Rec Scr Distress Signals 1 | . 1 . . . . Communications Jammed . | . . . . . . Distress Signals . | . . . . . . Times Spotted 165 | . 36 14 62 9 44 Peak Tracking Total 14 | . 6 4 6 5 14 Tactical Retreats 1 | . . . 1 . . Traps | -11 -10 -10 -10 -7 -7 ------- Run | Yrd Mat Min Sub Rec Scr Traps Triggered 4 | . 3 . 1 . . Indirectly . | . . . . . . Trap Hack Attempts . | . . . . . . Triggered . | . . . . . . Disarmed . | . . . . . . Reprogrammed . | . . . . . . Reused . | . . . . . . Traps Extracted . | . . . . . . Installed 4 | . . 4 . . . Triggered . | . . . . . . Most Traps Carried 4 | . . 4 3 . 3 Machines | -11 -10 -10 -10 -7 -7 ---------- Run | Yrd Mat Min Sub Rec Scr Machines Disabled 7 | . . . 3 1 3 Max in Single Turn 2 | . . . 2 1 . Machines Repaired . | . . . . . . Machines Dismantled . | . . . . . . Machines Sabotaged . | . . . . . . Overloaded Fab Kills . | . . . . . . Hacking | -11 -10 -10 -10 -7 -7 --------- Run | Yrd Mat Min Sub Rec Scr Machines Accessed 12 | . 4 1 4 . 3 Terminals 2 | . 2 . . . . Fabricators . | . . . . . . Repair Stations . | . . . . . . Recycling Units 2 | . 2 . . . . Scanalyzers . | . . . . . . Garrison Access . | . . . . . . Total Hacks 47 | . 12 1 7 . 27 Successful 40 | . 5 1 7 . 27 Failed 7 | . 7 . . . . Catastrophic 1 | . 1 . . . . Database Lockouts . | . . . . . . Manual 8 | . 8 . . . . Terminals 4 | . 4 . . . . Fabricators . | . . . . . . Repair Stations . | . . . . . . Recycling Units 8 | . 8 . . . . Scanalyzers . | . . . . . . Garrison Access . | . . . . . . Terminal Hacks 37 | . 2 1 7 . 27 Record 30 | . . . 4 . 26 Part Schematic 1 | . 1 . . . . Robot Analysis 1 | . 1 . . . . Open Door 2 | . . 1 1 . . Proto ID Catalog 2 | . . . 1 . 1 Release Object 1 | . . . 1 . . Fabricator Hacks . | . . . . . . Repair Station Hacks . | . . . . . . Recycling Unit Hacks 1 | . 1 . . . . Retrieve Components 1 | . 1 . . . . Scanalyzer . | . . . . . . Garrison Access Hacks . | . . . . . . Unauthorized Hacks 2 | . 2 . . . . Terminals . | . . . . . . Fabricators . | . . . . . . Repair Stations . | . . . . . . Recycling Units 2 | . 2 . . . . Tunnel 2 | . 2 . . . . Scanalyzers . | . . . . . . Garrison Access . | . . . . . . Data Cores Recovered . | . . . . . . Used . | . . . . . . Hacking Detections 3 | . 3 . . . . Full Trace Events . | . . . . . . Feedback Events . | . . . . . . Feedback Blocked . | . . . . . . Robot Schematics Acquired . | . . . . . . Robots Built . | . . . . . . Authchips . | . . . . . . Time . | . . . . . . Total Robot Build Rating . | . . . . . . Part Schematics Acquired 1 | . 1 . . . . Parts Built . | . . . . . . Authchips . | . . . . . . Time . | . . . . . . Total Part Build Rating . | . . . . . . Part Studies Acquired . | . . . . . . Parts Repaired . | . . . . . . Time . | . . . . . . Parts Recycled . | . . . . . . Recycled Matter . | . . . . . . Retrieved Matter . | . . . . . . Retrieved Components 9 | . 9 . . . . Parts Scanalyzed . | . . . . . . Part Schematics Acquired . | . . . . . . Parts Damaged . | . . . . . . Bothacking | -11 -10 -10 -10 -7 -7 ------------ Run | Yrd Mat Min Sub Rec Scr Used RIF Installer . | . . . . . . Robots Hacked 3 | . . . 2 . 1 Non-combat . | . . . . . . Combat 3 | . . . 2 . 1 Robot Hacks Applied 3 | . . . 2 . 1 parse_system 3 | . . . 2 . 1 Relay Couplers Released . | . . . . . . Fabnet Peak Effective % . | . . . . . . Robots Rewired . | . . . . . . Allies Hacked . | . . . . . . Hacks Repelled . | . . . . . . Allies | -11 -10 -10 -10 -7 -7 -------- Run | Yrd Mat Min Sub Rec Scr Total Allies 11 | . 1 8 1 . 1 Largest Group 6 | . 1 6 1 1 1 Highest-Rated Group 446 | . 90 90 57 57 446 Highest-Rated Ally 446 | . 90 90 57 57 446 Total Orders . | . . . . . . Ally Attacks 165 | . 12 54 25 1 73 Total Damage 5712 | . 519 537 575 39 4042 Kills 49 | . 3 8 8 . 30 Allies Corrupted . | . . . . . . Allies Melted . | . . . . . . X0-1V1 Amusement Gains 82 | . 12 . . . 70 Good Acts 177 | . 9 33 130 2 3 Bad Acts 198 | . 14 32 139 12 1 Intel | -11 -10 -10 -10 -7 -7 ------- Run | Yrd Mat Min Sub Rec Scr Active Infowar (turns) 459 | 64 384 . 11 . . Optics 11 | . . . 11 . . Seismic 448 | 64 384 . . . . Robot Analysis Total 1 | . 1 . . . . Derelict Logs Recovered 4 | . . 2 2 . . Drone Launches . | . . . . . . Drone Recoveries . | . . . . . . Exploration | -11 -10 -10 -10 -7 -7 ------------- Run | Yrd Mat Min Sub Rec Scr Turns Passed 15343 | 120 1288 751 9785 706 2693 Spaces Moved 4951 | 67 525 381 2608 74 1296 Core 830 | 19 . . 785 12 14 Treads 1672 | 48 516 332 668 58 50 Legs . | . . . . . . Wheels 2407 | . 9 49 1155 4 1190 Hover 42 | . . . . . 42 Flight . | . . . . . . Fastest Speed 50 | 50 125 125 120 225 50 Average Speed 269 | 128 177 155 332 635 199 Slowest Speed 1900 | 160 240 240 850 1900 400 Overloaded Moves . | . . . . . . Propulsion Burnouts . | . . . . . . Robots Hopped . | . . . . . . Potential Cave-ins . | . . . . . . Cave-ins Triggered . | . . . . . . Exploration Rate (%) 59 | 3 82 79 96 14 83 Regions Visited 5 Branch Regions 4 Pre-discovered Areas 7 | . 2 . . . 5 Known Exits Taken 2 | . . 1 1 . . Unknown Exits Taken 3 | 1 1 . . 1 . Scrap Searched 24 | . . 1 15 . 8 Spaces Dug 18 | . . . 16 2 . Terrain Destroyed 125 | . . 1 119 5 . Melee . | . . . . . . Projectile 68 | . . 1 62 5 . AOE 57 | . . . 57 . . Terrain Rammed . | . . . . . . Walls Destroyed . | . . . . . . Machines Disabled . | . . . . . . Actions | -11 -10 -10 -10 -7 -7 --------- Run | Yrd Mat Min Sub Rec Scr Total 6364 | 89 693 489 3403 298 1392 Wait 711 | . 43 20 437 195 16 Move 4946 | 66 524 380 2607 73 1296 Hop . | . . . . . . Pick Up 112 | 10 15 22 36 6 23 Fast Attach 5 | . . . 3 1 1 Attach 60 | 7 7 4 27 2 13 Detach 4 | . . . 2 . 2 Swap 25 | . 2 6 13 1 3 Drop 105 | . 4 19 50 5 27 Fire 364 | 6 95 31 215 15 2 Melee 13 | . . . 4 . 9 Ram . | . . . . . . Kick . | . . . . . . Crush 3 | . . 3 . . . Escape Stasis 3 | . 3 . . . . Rewire 4 | . . . 4 . . Trap 4 | . . 4 . . . Miscellaneous 5 | . . . 5 . . Route ------- -11/Scrapyard -10/Materials (discovered 5 exits: *Mat x3 / *Min / *Sub) -10/Mines (discovered 4 exits: *Mat x2 / *Exi / *Sub) -10/Subcaves (discovered 2 exits: *Mat / *Rec) -7/Recycling -7/Scraptown (discovered 1 exit: [*Fac]) History --------- Turn | Location | Event 4 | -11/Scrapyard | Discovered new exit (range 15) 121 | -11/Scrapyard | Entered Materials 290 | -10/Materials | Discovered new exit (range 6) 312 | -10/Materials | Build established: Mutant 474 | -10/Materials | Discovered new exit (range 9) 502 | -10/Materials | Prayed at D.C.S.S. Altar Unit 613 | -10/Materials | Discovered new exit (range 6) 834 | -10/Materials | X0-1V1 added 0b10 threat records associated with you (minor) 869 | -10/Materials | Discovered new exit (range 3) 1221 | -10/Materials | Derelicts attacked the area 1261 | -10/Materials | X0-1V1 sent allied H-61 Shepherd (x1) 1294 | -10/Materials | Melee accuracy permanently improved by X0-1V1 (+5%; -50 max core) 1306 | -10/Materials | Discovered new exit (range 7) 1306 | -10/Materials | X0-1V1 sent you into danger 1339 | -10/Materials | X0-1V1 upgraded hostiles (x1) 1399 | -10/Materials | Core integrity permanently improved by X0-1V1 (+300) 1408 | -10/Materials | X0-1V1 activates XOMVISION 1409 | -10/Materials | Entered Mines 1409 | -10/Mines | Accompanied by 1 ally 1432 | -10/Mines | Identified exit to Materials 1432 | -10/Mines | X0-1V1 revealed exit location to -9/Materials 1434 | -10/Mines | Heat dissipation permanently improved by X0-1V1 (+25; -125 max core) 1445 | -10/Mines | Identified exit to Exiles 1462 | -10/Mines | X0-1V1 announced a LAN party 1467 | -10/Mines | Joined a pair of Derelicts in attacking an 0b10 outpost 1474 | -10/Mines | X0-1V1 sent someone to fix up the mess you leave 1488 | -10/Mines | X0-1V1 rewrote H-61 Shepherd IFF filter 1495 | -10/Mines | X0-1V1 revealed exit location to -9/Materials 1578 | -10/Mines | X0-1V1 sent allied G-34 Mercenary (x5) 1597 | -10/Mines | Identified exit to Subcaves 1597 | -10/Mines | X0-1V1 revealed exit location to -10/Subcaves 1648 | -10/Mines | Learned Materials terminal intel 1701 | -10/Mines | Met a Derelict shopkeep closing up shop 1725 | -10/Mines | System corruption reached 10% 1760 | -10/Mines | X0-1V1 activates XOMVISION 1808 | -10/Mines | Assisted by bots powering up and referring to "LRC-V3" 1830 | -10/Mines | X0-1V1 sent you into danger 1862 | -10/Mines | X0-1V1 added 0b10 threat records associated with you (major) 1888 | -10/Mines | Deemed a non-threat by the Exiles lab entrance 1979 | -10/Mines | X0-1V1 sent you into danger 2062 | -10/Mines | X0-1V1 mutated your Weapon slot to Utility slot 2104 | -10/Mines | X0-1V1 vaporized surrounding terrain (radius 17) 2160 | -10/Mines | Entered Subcaves 2160 | -10/Subcaves | Accompanied by 2 allies 2161 | -10/Subcaves | Approached by a straggling Scientist 2161 | -10/Subcaves | X0-1V1 mutated your Propulsion slot to Weapon slot 2163 | -10/Subcaves | X0-1V1 rewrote Trooper 1b IFF filter 2184 | -10/Subcaves | X0-1V1 activates XOMVISION 2205 | -10/Subcaves | X0-1V1 sent hostile G-34 Mercenary (x3) 2233 | -10/Subcaves | X0-1V1 whisked you away to safety 2240 | -10/Subcaves | Identified exit to Recycling 2240 | -10/Subcaves | X0-1V1 revealed exit location to -7/Recycling 2283 | -10/Subcaves | Core integrity restored by X0-1V1 (+75) 2381 | -10/Subcaves | Disturbed a concealed Subdweller 2402 | -10/Subcaves | Disturbed a concealed Subdweller 2711 | -10/Subcaves | Visited 4L-MR0's lab 2722 | -10/Subcaves | Build established: Scavenger-Mutant 2745 | -10/Subcaves | Found Prototype Device 2751 | -10/Subcaves | Found Powered Cannon 2854 | -10/Subcaves | Learned Materials terminal intel 2924 | -10/Subcaves | Visited Clippyterm 2931 | -10/Subcaves | Learned Factory garrison access intel 2974 | -10/Subcaves | Learned Materials garrison access intel 3305 | -10/Subcaves | A Subdweller sparked back to life 3305 | -10/Subcaves | A Subdweller sparked back to life 3305 | -10/Subcaves | A Subdweller sparked back to life 3312 | -10/Subcaves | Identified exit to Materials 3312 | -10/Subcaves | X0-1V1 revealed exit location to -8/Materials 3336 | -10/Subcaves | X0-1V1 whisked you away to safety 3370 | -10/Subcaves | X0-1V1 sent you into danger 3650 | -10/Subcaves | Build established: Mutant 3775 | -10/Subcaves | X0-1V1 revealed exit location to -8/Materials 4050 | -10/Subcaves | X0-1V1 sent you into danger 4055 | -10/Subcaves | Core integrity fell below 50% 4129 | -10/Subcaves | Shifting Twisted Machinery released Mak. Hacking Suite 4141 | -10/Subcaves | Shifting Twisted Machinery released Shrapnel Trap 4159 | -10/Subcaves | X0-1V1 mutated your Utility slot to Power slot 4213 | -10/Subcaves | X0-1V1 activates XOMVISION 4219 | -10/Subcaves | Core integrity restored by X0-1V1 (+71) 4283 | -10/Subcaves | A swath of the cavern ceiling suddenly collapsed 4330 | -10/Subcaves | X0-1V1 sent hostile G-34 Mercenary (x5) 4380 | -10/Subcaves | Lost 4 parts (1p1n2w) 5193 | -10/Subcaves | X0-1V1 sent hostile G-34 Mercenary (x3) 5204 | -10/Subcaves | Core integrity fell below 20% 5217 | -10/Subcaves | Core integrity restored by X0-1V1 (+97) 5225 | -10/Subcaves | X0-1V1 activates XOMVISION 5543 | -10/Subcaves | Core integrity restored by X0-1V1 (+112) 5817 | -10/Subcaves | Core integrity restored by X0-1V1 (+112) 5844 | -10/Subcaves | X0-1V1 sent hostile G-34 Mercenary (x3) 6721 | -10/Subcaves | X0-1V1 sent hostile S-10 Pest (x3) 6743 | -10/Subcaves | X0-1V1 activates XOMVISION 6779 | -10/Subcaves | Core integrity restored by X0-1V1 (+60) 6807 | -10/Subcaves | X0-1V1 mutated your Weapon slot to Propulsion slot 6829 | -10/Subcaves | X0-1V1 sent hostile S-10 Pest (x3) 6875 | -10/Subcaves | X0-1V1 mutated your Propulsion slot to Weapon slot 6880 | -10/Subcaves | X0-1V1 tapped a No Entrance sign 6895 | -10/Subcaves | X0-1V1 sent you into danger 6907 | -10/Subcaves | X0-1V1 sent allied Chaos Knight (x1) 6937 | -10/Subcaves | X0-1V1 mutated your Weapon slot to Propulsion slot 6946 | -10/Subcaves | X0-1V1 rewrote Ignis IFF filter 6950 | -10/Subcaves | Spotted Ignis 6969 | -10/Subcaves | Core integrity restored by X0-1V1 (+63) 6973 | -10/Subcaves | X0-1V1 activates XOMVISION 6979 | -10/Subcaves | X0-1V1 sent you into danger 6985 | -10/Subcaves | X0-1V1 whisked you away to safety 7026 | -10/Subcaves | Core integrity restored by X0-1V1 (+63) 7041 | -10/Subcaves | X0-1V1 mutated your Propulsion slot to Utility slot 7094 | -10/Subcaves | Core integrity restored by X0-1V1 (+56) 7139 | -10/Subcaves | X0-1V1 activates XOMVISION 7519 | -10/Subcaves | X0-1V1 sent you into danger 7535 | -10/Subcaves | Core integrity restored by X0-1V1 (+93) 7972 | -10/Subcaves | Ambushed by Subdwellers from Twisted Machinery 8008 | -10/Subcaves | X0-1V1 whisked you away to safety 8461 | -10/Subcaves | X0-1V1 activates XOMVISION 9102 | -10/Subcaves | X0-1V1 rewrote Ignis IFF filter 9209 | -10/Subcaves | Disturbed a concealed Subdweller 9378 | -10/Subcaves | X0-1V1 mutated your Utility slot to Propulsion slot 9748 | -10/Subcaves | Found SUBCON Basin 9913 | -10/Subcaves | X0-1V1 activates XOMVISION 9949 | -10/Subcaves | Core integrity restored by X0-1V1 (+63) 9979 | -10/Subcaves | X0-1V1 mutated your Utility slot to Weapon slot 9990 | -10/Subcaves | X0-1V1 sent you into danger 10022 | -10/Subcaves | Core integrity restored by X0-1V1 (+63) 10057 | -10/Subcaves | X0-1V1 mutated your Propulsion slot to Weapon slot 10092 | -10/Subcaves | X0-1V1 sent you into danger 10188 | -10/Subcaves | X0-1V1 activates XOMVISION 10200 | -10/Subcaves | Shifting Twisted Machinery released Sub. Machine Gun 10201 | -10/Subcaves | Shifting Twisted Machinery released Mak. Light Armor Plating 10411 | -10/Subcaves | Build established: Gunner 10806 | -10/Subcaves | X0-1V1 activates XOMVISION 10808 | -10/Subcaves | Ambushed by Subdweller buried in earth 10843 | -10/Subcaves | Core integrity restored by X0-1V1 (+75) 11327 | -10/Subcaves | Ambushed by Subdweller buried in earth 11417 | -10/Subcaves | X0-1V1 mutated your Weapon slot to Utility slot 11428 | -10/Subcaves | X0-1V1 activates XOMVISION 11682 | -10/Subcaves | Build established: Mutant 11928 | -10/Subcaves | X0-1V1 activates XOMVISION 11945 | -10/Subcaves | Entered Recycling 11945 | -7/Recycling | Accompanied by 1 ally 11952 | -7/Recycling | X0-1V1 rewrote Ignis IFF filter 12143 | -7/Recycling | X0-1V1 vaporized surrounding terrain (radius 18) 12226 | -7/Recycling | X0-1V1 sent hostile S-27 Virus (x5) 12235 | -7/Recycling | Attached Powered Cannon, gained temporary slot: Power 12380 | -7/Recycling | Scanned before Scraplab entrance 12436 | -7/Recycling | Entered Scraplab 12479 | -7/Recycling | Discovered new exit (range 2) 12647 | -7/Recycling | X0-1V1 sent hostile X-62 Marksman (x3) 12651 | -7/Recycling | Entered Scraptown 12772 | -7/Scraptown | Visited Bundlers 12954 | -7/Scraptown | Visited Cyclists 13011 | -7/Scraptown | Visited Spacefarers 13032 | -7/Scraptown | Visited TADAMA 13072 | -7/Scraptown | Visited Shadow of the Wyrm 13135 | -7/Scraptown | Visited Artisan Demo Area 13153 | -7/Scraptown | Visited Assassins FH 13193 | -7/Scraptown | Visited UFD Registry 13193 | -7/Scraptown | Registered with UFD as "Wiredrive" 13203 | -7/Scraptown | Build established: Derelict-Mutant 13324 | -7/Scraptown | Discovered new exit (range 13) 13989 | -7/Scraptown | Visited Science Guys 14057 | -7/Scraptown | Visited Abandonware Association 14078 | -7/Scraptown | Learned abandonware demo "HACKBUD.EXE" 14078 | -7/Scraptown | Learned abandonware demo "SHUTEYE.EXE" 14124 | -7/Scraptown | Visited LU-1G1's Boring Crew 14149 | -7/Scraptown | Visited Curators Association 14225 | -7/Scraptown | Visited Infowarlord's Domain 14252 | -7/Scraptown | Visited A0-MCA Data Center 14283 | -7/Scraptown | Visited Junk Repository 14357 | -7/Scraptown | Visited Scrapoid Research Area 14390 | -7/Scraptown | Visited Research Penetration Think Tank 14441 | -7/Scraptown | Visited Cartography Club 14749 | -7/Scraptown | Given a C- rating by A0-MCA 14751 | -7/Scraptown | Found A0-MCA's Component Scanner 15090 | -7/Scraptown | Learned location of Storage (-7) 15090 | -7/Scraptown | Learned location of Extension (-6) 15090 | -7/Scraptown | Learned location of Hub_04(d) (-6) 15090 | -7/Scraptown | Learned location of Armory (-3) 15090 | -7/Scraptown | Learned 16 Materials zone layouts 15090 | -7/Scraptown | Learned 8 Research zone layouts 15090 | -7/Scraptown | Learned location of Testing (-2) 15090 | -7/Scraptown | Learned 4 Access zone layouts 15090 | -7/Scraptown | Learned 8 Access zone layouts 15090 | -7/Scraptown | Learned 8 Lower Caves zone layouts 15090 | -7/Scraptown | Learned 8 Upper Caves zone layouts 15090 | -7/Scraptown | Learned 12 Upper Caves zone layouts 15090 | -7/Scraptown | Learned 24 Upper Caves zone layouts 15090 | -7/Scraptown | Learned 20 Proximity Caves zone layouts 15090 | -7/Scraptown | Learned 4 Hub_04(d) zone layouts 15090 | -7/Scraptown | Learned location of 1 exit from Research 15090 | -7/Scraptown | Learned location of 2 exits from Proximity Caves 15090 | -7/Scraptown | Learned location of 1 exit from Proximity Caves 15121 | -7/Scraptown | Found Deep Structural Scanner 15223 | -7/Scraptown | X0-1V1 brought Wyrm Statue to life 15223 | -7/Scraptown | Attacked by Scraptown defenders 15224 | -7/Scraptown | Attached CPS modules to Chaos Wyrm 15339 | -7/Scraptown | Found Ragnarok Missile Launcher 15344 | -7/Scraptown | Destroyed by Triborg with Siege Cannon Last Messages --------------- Chaos Wyrm components. 15334_ Chaos Wyrm destroyed. 15336_ X0-1V1 twists the quantum threads just so. 15336_ 9U-4V1(j) sundered. 15336_ 9U-4V1(j) destroyed. 15337_ X0-1V1: "Heat sink stocks are down. Don't ask me how I know." (+107 heat dissipation) 15337_ Airjet destroyed. 15338_ Dropped Missile Launcher. 15338_ 5F-8Z5(r) follow-up attacks with Ripteeth. 15339_ Acquired Ragnarok Missile Launcher. 15341_ H6-R8P(j) IFF system glitched. 15342_ X0-1V1 makes it rain matter. 15343_ Component scanned: Lrg. Battery [ZW-HEY(p)]. 15344_ Triborg activates siege mode. 15344_ Penetrated by Siege Slug. 15344_ X0-1V1 chuckles heartily! Map ----- +----------------------------------------------------+ | #?#"" ""#??????## ###" "#" "#?? | | ###""" """######## ##"""""" ""#"" """"""#?? | | #?? | | #?? | | #?? | | ###### ########### ##########"" """"####??? | | #????# #?????????## ##????????#" %"#?????? | | #????" "?????#????# #########?#" ""#?????? | | #??? " " ????? ???# """"""""#?#" """#?????? | | ""#??" "??### ### " ""#?#" """#?????? | | "#? " " ?#"" """ "#?#"""""""#?????? | | "#?"""" """"?#" """ " ""#?#########?????? | | "#???## ##???#" " """"""""#???????????????? | | "#????? ?????#" ##"""####???????????????? | | ""#????? ?????#" "" " #######?####????????????? | | ###????? ?????#" " ## ? #????########? | | ??????? ?????#"""""" ## #???## ! #? | | ##??????? ??????###### ## """" #??## ## | | ????????? ???????????# ## """" #??# % / # | | ########??############ ## %"" " #??# =%* # | | % ##% %## # % * # | | ## % # =!% " | | ########??############ %## % ] # | | ????????????????????# ## % # % # | | ####???????????????### % #% # =%!% ### "# | | """#????????######?# !!@%=%% &*! % | | "#???????#""""" #% *%!%====!!% %% % | | ] "#???????# " " # % r!![%%=/!E p *% | | ! "#???????# % ![!!|*!TTj=%[ | | ! "#???????# """ # [%!=%ETT % | | = "#???????# """ ; ## =!%! ;%####"# | | / "#???????# """ # # rj %= ####????# = | | "#???????? """ ?# ## % %#???????# !% | | "#???????? """ ??# ##xx! <##????? ?# ! | | ""#???????? ??# ##*r=[<##????" ## [ | | ###???????? ???# ## ]!]<<#???? ## | | ###????????""""???# ##]!!= <#???? ## | | ""#????????###????# ##!=%< "##??" ## | | "################# ##![=< <"#?#" ## | | "##"" "" """" " # ##=%=" "##"" ## | | "##" "]%" # ##!!%"""""#""" ## | | "## %!!] # #%=*=" "#" ## | | ""##"" =! # ##!!![ """ ## | | """##"%[ # #]*=* ## | | """##""= # ##! ## | | ""??### ## # ## ## | | ##??# # # ############ #### | | ##### # # | | X""##] / # ! ! | | "## ! #" " "%" # | +----------------------------------------------------+ Best States ------------- Heat Dissipation 162 Energy Generation 44 Energy Capacity 1745 Matter Stores 1000 Matter Capacity 1000 Sight Range 22 Terrain Scan Density 10 Armor Coverage 800 Resistance: KI 19 Resistance: TH 21 Evasion (%) 53 Recoil Reduction 2 Salvage Targeting 1 Trap Extractor Capacity 4 Item Schematics ----------------- Wheel | -10/Materials | Hacked Robot Schematics ------------------ None Fabricated ------------ Nothing Repaired ---------- Nothing Studied --------- None Alien Tech Used ----------------- None Achievements -------------- None Challenges ------------ None Game ------ Seed ArmorThrowingDoublenader Manual? 0 Play Time 00:55:42 Cumulative 974.4 hours Start 2026.07.07 @ 05:08:13 End 2026.07.07 @ 07:31:10 Sessions 4 Manual Loads 0 Difficulty Rogue Special Mode None Game No. 1112 Rogue 1112 Adventurer 0 Explorer 0 Win Type - Total 43 Types 20/1/9/3/2/1/3/2/1/1 Lore% 98 Gallery% 96 Achievement% 93 Wizard Run 0 Options --------- Layout 2 ASCII 0 Keyboard 0 Movement Mouse Keybinds 0 Fullscreen 2 Font 24/X11 Map View 50x44 Zoom Use 0% Tactical HUD 1 Map Filters NONE Filters NONE Steam 1 RUN: bd8cf8e0-f1fa-4fca-8353-cbb784b7c2b3